bitfinex/quotes_ETHUSD_20250604
["timestamp","ask_amount","ask_price","bid_price","bid_amount"]
[1749050843883,1.71347,2648.3,2647.8,1.915]
[1749050847287,1.5077,2648.3,2647.8,1.915]
[1749050848153,1.5077,2648.3,2647.9,1.915]
[1749050848359,1.5077,2648.3,2648.0,1.915]
[1749050848585,1.5077,2648.3,2648.1,1.915]
[1749050848893,1.5077,2648.3,2648.2,1.915]
[1749050849050,1.643,2649.4,2648.2,1.915]
[1749050849254,1.643,2649.2,2648.2,8.30465016]
[1749050849901,1.643,2649.2,2648.3,8.592]
[1749050850111,1.643,2649.2,2648.5,6.38965016]
[1749050850668,1.5435,2649.8,2648.8,6.38965016]
[1749050850869,1.5435,2649.8,2648.9,8.144]
[1749050852973,0.55,2649.5,2648.9,8.144]
[1749050853168,1.5105,2649.3,2649.0,1.906]
[1749050854575,0.20605,2649.4,2649.0,1.906]
[1749050854576,1.5723,2649.4,2649.0,1.906]
[1749050855876,0.55,2649.3,2649.1,1.906]
[1749050856076,0.21223,2649.2,2649.1,1.906]
[1749050856716,1.5723,2649.4,2649.1,1.906]
[1749050857420,1.5723,2649.4,2648.9,8.144]
[1749050857579,1.5723,2649.4,2649.2,1.906]
[1749050861321,4.67,2649.7,2649.2,1.906]
[1749050861486,1.5209,2649.6,2649.2,1.906]
[1749050863590,0.02,2649.9,2649.4,6.38965016]
[1749050863982,0.02,2649.9,2649.7,0.7213]
[1749050865241,0.02,2649.9,2649.8,1.905]
[1749050866729,0.02,2649.9,2649.5,0.7213]
[1749050867046,0.02,2649.9,2649.6,1.905]
[1749050868647,0.02,2649.9,2649.6,17.905]
[1749050873946,0.02,2649.9,2649.6,16.0]
[1749050874133,0.02,2649.9,2649.7,8.566]
[1749050875430,0.02,2649.9,2649.7,17.905]
[1749050875635,0.02,2649.9,2649.8,6.66]
[1749050876363,0.02,2649.9,2649.5,0.7213]
[1749050876512,0.02,2649.9,2649.8,1.905]
[1749050878259,0.02,2649.9,2649.3,0.7213]
[1749050878468,1.5937,2649.8,2649.4,1.905]
[1749050878649,1.81007,2649.8,2649.4,1.905]
[1749050880621,1.81007,2649.8,2649.1,16.0]
[1749050880828,1.81007,2649.8,2649.2,1.905]
[1749050880829,1.5937,2649.8,2649.2,1.905]
[1749050882135,1.5937,2649.8,2649.0,16.0]
[1749050882337,1.5937,2649.8,2649.3,1.905]
[1749050882649,1.5773,2649.6,2649.3,1.905]
[1749050883022,1.5253,2649.8,2649.3,1.905]
[1749050883269,0.02,2649.9,2649.2,16.0]
[1749050883473,0.02,2649.9,2649.5,16.0]
[1749050883681,0.02,2649.9,2649.6,1.895]
[1749050884049,0.02,2649.9,2649.7,1.895]
[1749050885336,0.02,2649.9,2649.0,0.7213]
[1749050885537,0.55,2649.7,2649.1,1.895]
[1749050885751,0.21188,2649.6,2649.1,1.895]
[1749050885939,1.5688,2649.8,2649.1,1.895]
[1749050886432,1.5688,2649.8,2649.2,1.895]
[1749050886840,0.55,2649.7,2649.2,1.895]
[1749050887043,1.5227,2649.4,2649.2,1.895]
[1749050890440,1.6126,2649.8,2649.2,1.895]
[1749050890640,1.6126,2649.6,2649.0,16.0]
[1749050890974,1.6126,2649.4,2649.1,1.895]
[1749050891139,1.6126,2649.4,2649.2,10.035]
[1749050891336,2.1626,2649.4,2649.3,1.895]
[1749050891533,1.6126,2649.4,2649.3,1.895]
[1749050892482,2.1626,2649.4,2649.3,1.895]
[1749050892657,2.37886,2649.4,2649.3,1.895]
[1749050896284,2.1626,2649.4,2649.3,1.895]
[1749050898898,2.1626,2649.4,2649.3,1.896]
[1749050900183,6.8326,2649.4,2649.3,1.896]
[1749050900890,22.8326,2649.4,2649.3,1.896]
[1749050901095,22.8326,2649.4,2648.0,3.38050944]
[1749050901300,0.55,2649.1,2648.1,1.896]
[1749050901775,0.55,2648.9,2648.1,1.896]
[1749050902388,0.55,2648.9,2648.2,6.647]
[1749050902792,0.55,2648.9,2648.1,1.896]
[1749050902996,0.55,2648.9,2648.2,6.647]
[1749050903195,0.55079094,2648.8,2648.2,6.647]
[1749050903396,0.55079094,2648.8,2648.1,1.896]
[1749050903613,3.93130038,2648.8,2648.2,6.646]
[1749050903792,3.93130038,2648.8,2648.1,8.542]
[1749050903973,1.552,2648.7,2648.1,8.542]
[1749050904397,2.62233004,2648.7,2648.1,8.542]
[1749050904598,2.62233004,2648.7,2647.7,3.38050944]
[1749050904910,2.62233004,2648.7,2648.2,1.896]
[1749050905095,2.62233004,2648.7,2648.0,6.646]
[1749050905096,1.552,2648.7,2648.3,1.896]
[1749050905593,4.67,2648.9,2648.3,1.896]
[1749050906709,1.6227,2649.2,2648.5,3.38050944]
[1749050907005,1.6227,2649.2,2648.3,1.896]
[1749050907006,1.6227,2649.2,2648.6,6.645]
[1749050907500,1.6227,2649.2,2648.7,8.142]
[1749050907920,5.00320944,2649.2,2648.7,8.142]
[1749050908067,5.00320944,2649.2,2648.8,1.896]
[1749050908797,1.6566,2648.9,2648.7,8.142]
[1749050908999,1.6566,2648.9,2648.8,1.896]
[1749050909304,2.21531094,2648.9,2648.8,1.896]
[1749050909810,1.6566,2648.9,2648.8,1.896]
[1749050912300,2.2066,2648.9,2648.8,1.896]
[1749050913447,0.55,2648.8,2648.7,8.142]
[1749050913647,3.93050944,2648.8,2648.7,10.028]
[1749050913854,29.61131888,2648.8,2648.7,10.028]
[1749050914073,32.57245077,2648.8,2648.7,10.028]
[1749050914190,29.19194133,2648.8,2648.7,10.028]
[1749050914390,27.90245077,2648.8,2648.7,8.142]
[1749050914590,27.90245077,2648.8,2648.7,10.029]
[1749050914842,24.52194133,2648.8,2648.7,10.029]
[1749050914993,27.90245077,2648.8,2648.7,10.029]
[1749050915333,24.52194133,2648.8,2648.7,10.029]
[1749050916299,27.90245077,2648.8,2648.7,10.029]
[1749050916741,24.52194133,2648.8,2648.7,10.029]
[1749050919954,27.90245077,2648.8,2648.7,10.029]
[1749050921353,2.1506,2648.6,2647.0,3.38050944]
[1749050921609,0.55,2648.2,2647.1,10.03]
[1749050921922,2.1781,2648.2,2647.1,10.03]
[1749050922580,16.0,2648.0,2647.2,1.886]
[1749050922875,3.38050944,2647.9,2647.2,1.886]
[1749050923071,5.00860944,2647.7,2647.2,1.886]
[1749050923517,1.6281,2647.7,2647.2,1.886]
[1749050923869,3.38050944,2647.6,2647.3,1.886]
[1749050924079,3.88137038,2647.6,2647.3,1.886]
[1749050925120,0.50086094,2647.6,2647.3,1.886]
[1749050925317,3.93050944,2647.6,2647.3,1.886]
[1749050925527,3.93050944,2647.6,2647.4,1.886]
[1749050925528,0.55,2647.6,2647.4,1.886]
[1749050925751,3.93050944,2647.5,2647.4,1.886]
[1749050925914,19.93050944,2647.5,2647.4,1.886]
[1749050926119,21.43300944,2647.5,2647.4,1.886]
[1749050926370,23.91436133,2647.5,2647.4,1.886]
[1749050926532,1.5025,2647.3,2647.1,8.144]
[1749050926738,2.0525,2647.3,2647.2,1.886]
[1749050926932,2.48135189,2647.5,2647.2,1.886]
[1749050927132,0.55,2647.4,2647.2,1.886]
[1749050927647,0.55,2647.5,2647.2,1.886]
[1749050928162,1.5025,2647.6,2647.2,1.886]
[1749050929364,1.5092,2647.9,2647.2,1.886]
[1749050930145,0.55,2647.8,2647.2,1.886]
[1749050930338,0.55,2647.8,2647.1,8.144]
[1749050930542,0.55,2647.8,2647.2,1.886]
[1749050931841,0.55,2647.8,2647.1,8.144]
[1749050931842,0.55,2647.4,2647.1,8.144]
[1749050932055,0.55,2647.4,2647.2,1.886]
[1749050932260,2.36046,2647.4,2647.2,1.886]
[1749050933031,0.52,2648.5,2647.2,1.886]
[1749050933235,8.39085229,2648.9,2647.4,10.0]
[1749050933236,1.5546,2648.6,2647.4,10.0]
[1749050933463,1.5546,2648.6,2647.5,17.09929378]
[1749050933631,1.5546,2648.6,2647.5,1.09929378]
[1749050933837,1.5546,2648.6,2647.6,8.519]
[1749050934077,1.5546,2648.6,2647.6,9.07296056]
[1749050934283,0.55,2648.7,2647.7,0.55396056]
[1749050934450,1.5259,2648.8,2647.7,0.55396056]
[1749050934837,0.55,2648.7,2647.7,10.55396056]
[1749050935036,1.5259,2648.8,2647.8,8.518]
[1749050935267,0.79480719,2648.7,2647.9,1.886]
[1749050935683,0.55,2648.6,2647.3,1.09929378]
[1749050935838,0.79480719,2648.7,2647.5,16.0]
[1749050936038,0.55,2648.6,2647.5,16.0]
[1749050936484,0.55,2648.6,2647.6,3.849772]
[1749050936680,0.79480719,2648.7,2647.5,16.55396056]
[1749050936681,0.55,2648.7,2647.5,16.55396056]
[1749050936883,6.95217193,2648.7,2647.6,1.886]
[1749050937084,0.55,2648.5,2647.6,8.517]
[1749050937290,0.55,2648.1,2647.6,1.886]
[1749050937491,6.95217193,2648.1,2646.9,4.6228095]
[1749050937649,0.55,2647.9,2647.2,8.516]
[1749050937849,1.5551,2647.8,2647.2,1.886]
[1749050938787,1.5551,2647.8,2647.3,1.886]
[1749050940589,1.5449,2648.0,2647.3,1.886]
[1749050940789,0.55,2647.9,2647.4,0.55396056]
[1749050940992,1.5449,2648.0,2647.4,0.55396056]
[1749050941293,2.6300468,2649.2,2647.4,1.09929378]
[1749050941294,16.0,2648.7,2647.4,1.09929378]
[1749050941795,16.0,2648.7,2647.4,0.55396056]
[1749050942492,0.55,2648.6,2647.4,0.55396056]
[1749050942858,0.55,2648.6,2647.3,1.886]
[1749050943058,0.55,2648.4,2647.3,1.886]
[1749050943556,1.5415,2648.8,2647.6,6.40217193]
[1749050943880,1.5415,2648.8,2647.7,0.55396056]
[1749050944083,1.5415,2648.8,2647.8,6.627]
[1749050944299,0.55,2648.7,2647.8,6.627]
[1749050945319,0.55,2648.5,2647.3,1.54510603]
[1749050945493,0.55,2648.5,2647.4,8.502]
[1749050947126,0.55,2648.5,2647.4,9.05596056]
[1749050947479,0.55,2648.5,2647.4,8.502]
[1749050948409,1.5091,2648.3,2647.6,16.0]
[1749050949005,0.55,2648.4,2647.6,16.0]
[1749050950305,0.55,2648.4,2647.7,8.499]
[1749050951091,0.55,2648.4,2647.8,1.876]
[1749050951308,0.55,2648.4,2647.9,1.876]
[1749050951501,0.76141,2648.4,2647.9,1.876]
[1749050951706,0.55,2648.4,2647.9,1.876]
[1749050952295,1.5641,2648.5,2647.9,1.876]
[1749050955090,0.55,2648.4,2647.4,0.54533322]
[1749050955332,0.55,2648.4,2647.6,16.0]
[1749050956938,0.55,2648.4,2647.5,0.55396056]
[1749050957240,0.55,2648.4,2647.6,8.496]
[1749050957393,0.55,2648.4,2647.7,8.495]
[1749050957594,0.55,2648.4,2647.2,16.0]
[1749050957789,0.55,2648.2,2647.3,8.495]
[1749050958143,8.05637193,2648.3,2647.4,8.495]
[1749050958144,0.55,2648.0,2647.4,8.495]
[1749050958350,1.6198,2647.9,2647.5,1.876]
[1749050958493,0.55,2648.0,2647.5,1.876]
[1749050958494,6.40217193,2647.7,2647.5,1.876]
[1749050958829,2.1698,2647.6,2647.5,1.876]
[1749050960900,0.55,2647.5,2647.1,8.144]
[1749050961100,0.55,2647.5,2647.2,1.876]
[1749050961509,1.6198,2647.6,2647.3,1.876]
[1749050961940,1.6198,2647.6,2647.1,8.144]
[1749050962106,0.55,2647.5,2647.2,1.876]
[1749050962294,0.76698,2647.5,2647.2,1.876]
[1749050962798,0.76698,2647.5,2647.1,8.144]
[1749050963345,0.76698,2647.5,2647.2,1.876]
[1749050963532,0.55,2647.5,2647.2,1.876]
[1749050963740,1.6198,2647.6,2647.2,1.876]
[1749050963910,1.6198,2647.6,2647.1,8.144]
[1749050964242,0.55,2647.5,2647.2,1.876]
[1749050964445,0.76698,2647.5,2647.2,1.876]
[1749050966359,2.1686,2647.3,2647.1,8.144]
[1749050966557,2.1686,2647.3,2647.2,1.876]
[1749050968861,1.6186,2647.3,2647.2,1.876]
[1749050970018,1.5027,2647.5,2647.2,1.876]
[1749050970217,0.55,2647.4,2647.2,1.876]
[1749050970954,0.75527,2647.4,2647.2,1.876]
[1749050971256,0.75527,2647.4,2647.3,1.876]
[1749050973083,1.6571,2647.3,2647.1,8.144]
[1749050973377,2.2071,2647.3,2647.2,1.876]
[1749050974033,1.6571,2647.3,2647.1,8.144]
[1749050974231,1.6571,2647.3,2647.2,1.867]
[1749050976044,8.60927193,2647.3,2647.2,1.867]
[1749050976254,8.60927193,2647.3,2647.1,8.144]
[1749050976255,0.55,2647.2,2647.1,8.144]
[1749050976456,2.1831,2647.2,2647.1,10.011]
[1749050978428,6.8531,2647.2,2647.1,10.011]
[1749050979241,8.58527193,2647.2,2647.1,10.011]
[1749050979526,3.04162719,2647.2,2647.1,1.867]
[1749050980284,0.55,2647.3,2647.1,1.867]
[1749050980424,1.6662,2647.4,2647.1,1.867]
[1749050982225,1.6662,2647.4,2646.2,6.40217193]
[1749050983577,1.6662,2647.4,2646.3,6.609]
[1749050984271,1.6662,2647.4,2646.4,16.0]
[1749050984927,0.55,2647.3,2646.5,6.608]
[1749050985336,0.55,2647.3,2646.5,6.607]
[1749050986867,6.95217193,2647.3,2645.8,16.0]
[1749050987061,0.55,2647.1,2646.0,16.0]
[1749050987449,5.22,2647.1,2646.2,16.0]
[1749050990470,5.22,2647.1,2646.3,6.605]
[1749050990628,0.55,2646.9,2646.4,1.867]
[1749050990832,0.55,2646.9,2646.2,16.0]
[1749050991064,0.55,2646.9,2646.3,1.867]
[1749050991367,1.22919,2646.9,2646.3,1.867]
[1749050991566,0.55,2646.7,2646.3,1.867]
[1749050992051,1.6428,2646.8,2646.3,1.867]
[1749050993895,0.55,2647.0,2646.3,1.867]
[1749050995944,0.55,2647.0,2646.4,8.47]
[1749050996498,1.6546,2647.1,2646.4,8.47]
[1749050997444,1.6546,2647.1,2646.4,8.47]
[1749050998686,4.67,2647.3,2646.4,8.47]
[1749050998979,1.6509,2647.2,2646.4,8.47]
[1749051001083,1.6509,2647.2,2646.5,1.867]
[1749051001381,1.6509,2647.2,2646.6,6.6]
[1749051001590,3.41599,2647.2,2646.6,6.6]
[1749051001955,3.41599,2647.2,2646.5,1.867]
[1749051002186,1.5727,2647.0,2646.6,1.867]
[1749051002560,1.5727,2647.0,2646.7,1.867]
[1749051002874,1.75727,2646.9,2646.8,1.867]
[1749051003864,1.5727,2647.0,2646.8,1.867]
[1749051004182,6.40217193,2647.7,2646.8,1.867]
[1749051004183,1.6226,2647.6,2646.8,1.867]
[1749051004428,1.5355,2647.5,2646.9,1.858]
[1749051007453,1.5355,2647.5,2647.0,1.858]
[1749051007656,1.5355,2647.5,2647.1,1.858]
[1749051008381,2.38426719,2647.5,2647.1,1.858]
[1749051009094,1.5649,2647.4,2647.1,1.858]
[1749051010590,1.5831,2647.7,2647.1,1.858]
[1749051011399,1.5831,2647.7,2646.8,6.40217193]
[1749051011559,1.5831,2647.7,2646.9,8.452]
[1749051011927,1.5831,2647.7,2646.4,6.40217193]
[1749051012102,0.55,2647.6,2646.3,16.0]
[1749051012296,0.55,2647.4,2646.5,8.452]
[1749051013065,1.6202,2647.5,2646.5,8.452]
[1749051014596,1.6202,2647.5,2646.6,6.592]
[1749051018914,1.6202,2647.5,2646.6,6.59]
[1749051020180,0.55,2647.2,2646.2,16.0]
[1749051020384,1.5285,2647.1,2646.2,16.0]
[1749051020587,1.5285,2647.1,2646.3,1.858]
[1749051020836,1.73635,2647.0,2646.3,8.447]
[1749051021297,1.73635,2647.0,2646.3,1.858]
[1749051021629,1.5661,2646.7,2646.4,1.858]
[1749051021781,1.5661,2646.5,2645.2,0.97982214]
[1749051021988,2.1161,2646.3,2646.2,1.858]
[1749051022220,5.50301723,2646.3,2646.2,1.858]
[1749051022542,2.1161,2646.2,2644.9,3.38691723]
[1749051022682,2.1161,2646.2,2644.4,7.95647646]
[1749051022683,2.1161,2646.2,2644.4,4.56955923]
[1749051023047,0.55,2646.0,2644.4,4.56955923]
[1749051023282,5.48781723,2645.5,2645.4,1.858]
[1749051023451,2.1009,2645.5,2645.4,1.858]
[1749051023898,2.1009,2645.5,2644.5,0.47993336]
[1749051024087,0.55,2645.4,2644.4,4.56955923]
[1749051024288,0.55,2645.4,2645.3,4.63010523]
[1749051024289,24.5845253,2645.4,2645.3,4.63010523]
[1749051024518,27.04297783,2645.4,2645.3,4.63010523]
[1749051024899,27.04297783,2645.4,2645.3,2.52943286]
[1749051024900,20.63155253,2645.4,2645.3,2.52943286]
[1749051025104,27.04297783,2645.4,2645.3,2.52943286]
[1749051025311,27.04297783,2645.4,2645.3,2.23301494]
[1749051026313,0.55,2645.2,2644.4,4.56955923]
[1749051026515,2.1054,2645.2,2644.4,4.56955923]
[1749051027413,2.1054,2645.2,2645.1,8.172]
[1749051027614,2.1054,2645.2,2645.1,10.03]
[1749051027823,2.1054,2645.2,2644.4,4.56955923]
[1749051028024,2.1596,2644.5,2644.4,4.56955923]
[1749051028193,2.1596,2644.5,2644.4,14.57955923]
[1749051029190,1.6096,2644.5,2644.4,14.57955923]
[1749051029396,2.08096978,2645.1,2644.4,14.57955923]
[1749051029397,1.645,2644.8,2644.4,14.57955923]
[1749051029637,0.19707447,2646.6,2644.4,14.57955923]
[1749051029638,1.645,2645.2,2644.5,1.6567]
[1749051029833,1.645,2645.2,2644.5,2.63652214]
[1749051029989,1.645,2645.2,2644.4,6.42755923]
[1749051029990,1.645,2645.2,2644.6,1.858]
[1749051030189,0.55,2645.1,2644.4,4.56955923]
[1749051030396,0.55,2645.1,2644.7,1.858]
[1749051030591,0.55,2645.1,2644.4,4.56955923]
[1749051030793,3.0,2644.0,2643.6,1.57538099]
[1749051031134,2.38636912,2644.0,2643.7,1.859]
[1749051032230,2.1287,2643.9,2643.8,1.859]
[1749051032592,1.5787,2643.9,2643.8,1.859]
[1749051032929,2.38636912,2644.0,2643.8,1.859]
[1749051033138,2.38636912,2644.0,2643.8,2.2024381]
[1749051033698,2.38636912,2644.0,2643.9,11.5892]
[1749051033937,2.38636912,2644.0,2643.9,1.5892]
[1749051034430,2.38636912,2644.0,2643.6,1.57538099]
[1749051034608,2.38636912,2644.0,2643.2,6.588]
[1749051034929,2.38636912,2644.0,2642.4,0.71953799]
[1749051034930,2.38636912,2644.0,2642.4,0.31863601]
[1749051035093,2.38636912,2644.0,2643.1,13.0194253]
[1749051035297,2.38636912,2644.0,2643.1,6.608]
[1749051035534,2.38636912,2644.0,2643.1,0.02]
[1749051037322,1.5001,2643.9,2643.1,0.02]
[1749051037523,1.5001,2643.9,2643.2,10.006]
[1749051037728,1.5001,2643.9,2643.3,1.85]
[1749051037900,2.38636912,2644.0,2643.3,1.85]
[1749051038410,2.38636912,2644.0,2643.1,0.02]
[1749051038411,0.55,2643.8,2643.1,0.02]
[1749051038615,7.58703726,2643.8,2643.2,10.006]
[1749051038927,2.50953373,2643.7,2643.2,10.006]
[1749051039505,1.5083,2643.9,2643.2,10.006]
[1749051041113,1.5083,2643.9,2643.2,8.156]
[1749051041640,1.5083,2643.9,2643.3,1.85]
[1749051042248,1.5083,2643.9,2643.2,8.156]
[1749051042455,1.5083,2643.9,2643.4,1.85]
[1749051043358,1.626,2643.5,2643.1,0.02]
[1749051043653,16.55,2643.2,2643.1,0.02]
[1749051043843,18.1143,2643.2,2643.1,1.871]
[1749051045359,18.1143,2643.2,2642.0,4.96212121]
[1749051045360,0.55,2642.5,2640.8,8.157]
[1749051045563,1.5441,2642.1,2641.2,1.984]
[1749051045743,1.5441,2642.1,2641.3,0.3160499]
[1749051046466,0.55,2642.0,2641.3,0.3160499]
[1749051046628,1.5441,2642.1,2641.3,0.3160499]
[1749051047235,1.5441,2642.1,2641.4,1.5587]
[1749051047441,2.1072,2642.6,2641.4,1.5587]
[1749051047641,4.62162373,2642.6,2641.4,1.5587]
[1749051047868,4.62162373,2642.6,2641.4,1.87473793]
[1749051048072,4.62162373,2642.6,2641.5,1.984]
[1749051048371,1.6279,2642.4,2641.6,1.985]
[1749051049251,0.55,2642.3,2641.7,1.985]
[1749051049583,0.55,2642.3,2641.8,1.985]
[1749051049584,1.47149373,2642.3,2641.8,1.985]
[1749051050328,1.47149373,2642.3,2641.9,1.985]
[1749051050476,0.55,2642.1,2641.9,1.985]
[1749051051304,0.55,2642.2,2641.9,1.985]
[1749051051603,0.92149373,2642.3,2641.9,1.985]
[1749051051803,1.6279,2642.4,2641.9,1.985]
[1749051059941,1.6279,2642.4,2642.0,8.163]
[1749051062157,2.0539,2642.7,2642.0,8.163]
[1749051062368,1.5039,2642.7,2642.0,8.163]
[1749051063407,0.38360773,2642.8,2642.1,1.5086]
[1749051063610,2.0358,2643.6,2642.1,8.2716]
[1749051063828,1.5158,2643.6,2642.5,6.42768806]
[1749051064064,1.5358,2643.9,2642.6,19.4936]
[1749051064944,1.5358,2643.9,2642.7,6.763]
[1749051065628,1.5358,2643.9,2642.8,1.5289]
[1749051065826,0.39221691,2643.8,2642.8,1.5289]
[1749051066274,6.81990497,2643.8,2642.9,1.985]
[1749051066567,6.81990497,2643.8,2642.9,8.739]
[1749051066772,6.81990497,2643.8,2643.0,1.985]
[1749051066968,0.8355705,2643.7,2643.0,1.985]
[1749051068231,0.39221691,2643.8,2643.0,1.985]
[1749051068870,0.39221691,2643.8,2643.0,17.985]
[1749051069028,1.5358,2643.9,2643.0,17.985]
[1749051070740,0.02,2643.9,2643.1,17.6221]
[1749051071300,0.02,2643.9,2643.3,16.0]
[1749051071470,0.02,2643.9,2643.4,8.162]
[1749051071636,0.02,2643.9,2643.5,8.712]
[1749051071970,0.26063691,2643.9,2643.6,1.985]
[1749051072475,0.26063691,2643.9,2643.4,8.162]
[1749051072476,0.26063691,2643.9,2643.7,1.985]
[1749051072643,6.42768806,2643.8,2643.7,1.985]
[1749051073159,2.1166,2643.7,2643.4,8.162]
[1749051073350,7.83211687,2643.6,2643.5,1.985]
[1749051073746,0.85442881,2643.6,2643.5,1.985]
[1749051073963,1.5666,2643.7,2643.5,1.985]
[1749051074543,6.68832497,2643.9,2643.5,1.985]
[1749051075779,0.26063691,2643.9,2643.5,1.985]
[1749051076162,0.02,2643.9,2643.5,1.985]
[1749051076544,0.02,2643.9,2643.6,1.923]
[1749051077285,1.5945,2643.8,2643.4,8.162]
[1749051077649,1.5945,2643.8,2643.5,1.923]
[1749051078065,0.55,2643.7,2643.6,1.923]
[1749051078240,0.55,2643.7,2643.4,8.162]
[1749051078241,1.40921881,2643.7,2643.4,8.162]
[1749051078446,0.55,2643.5,2643.4,8.162]
[1749051078650,0.55,2643.5,2643.4,10.085]
[1749051079246,2.0593,2643.5,2643.4,8.162]
[1749051079446,2.0593,2643.5,2643.4,10.085]
[1749051079758,2.99392069,2643.5,2643.4,10.085]
[1749051081062,2.0593,2643.5,2643.4,10.085]
[1749051081788,1.5093,2643.5,2643.4,10.085]
[1749051081972,2.40101881,2643.7,2643.4,10.085]
[1749051083452,1.5418,2643.7,2643.4,10.085]
[1749051083662,0.55,2643.8,2643.4,10.085]
[1749051083860,16.57,2643.9,2643.4,10.085]
[1749051084682,0.02,2643.9,2643.4,10.085]
[1749051085101,0.02,2643.9,2643.4,16.765]
[1749051085401,0.42515691,2643.9,2643.4,16.765]
[1749051085861,0.55,2643.8,2643.4,8.162]
[1749051086063,6.97768806,2643.8,2643.5,1.923]
[1749051087200,1.5726,2643.7,2643.4,8.162]
[1749051087492,1.5726,2643.7,2643.6,1.923]
[1749051087493,2.8628845,2643.7,2643.6,1.923]
[1749051088498,9.29057256,2643.7,2643.6,1.923]
[1749051090060,13.96057256,2643.7,2643.6,1.923]
[1749051090363,29.96057256,2643.7,2643.6,1.923]
[1749051090869,30.1888845,2643.7,2643.6,1.923]
[1749051091064,7.5328845,2643.7,2643.6,1.923]
[1749051091877,0.55,2643.6,2643.4,8.162]
[1749051092080,1.41898845,2643.6,2643.5,1.923]
[1749051092414,17.95695691,2643.9,2643.5,1.923]
[1749051092589,0.42515691,2643.9,2643.5,1.923]
[1749051093099,0.42515691,2643.9,2643.5,3.5265]
[1749051094178,0.02,2643.9,2643.5,3.5265]
[1749051098106,0.57,2643.9,2643.5,3.5265]
[1749051098311,0.57,2643.9,2643.5,1.923]
[1749051098902,0.02,2643.9,2643.5,1.923]
[1749051101905,1.543,2643.8,2643.6,1.923]
[1749051102218,6.97768806,2643.7,2643.6,1.923]
[1749051102576,6.97768806,2643.7,2643.4,8.162]
[1749051102777,0.55,2643.7,2643.6,10.083]
[1749051102978,0.26063691,2643.9,2643.6,10.083]
[1749051103586,0.26063691,2643.9,2643.6,8.16]
[1749051103798,0.26063691,2643.9,2643.7,1.923]
[1749051104012,0.26063691,2643.9,2643.6,8.16]
[1749051104218,0.81063691,2643.9,2643.8,1.923]
[1749051105003,0.26063691,2643.9,2643.8,1.923]
[1749051105219,0.02,2643.9,2643.8,1.923]
[1749051106288,0.02,2643.9,2643.8,1.87]
[1749051108589,0.57,2643.9,2643.8,1.87]
[1749051108791,0.02,2643.9,2643.8,1.87]
[1749051110024,0.02,2643.9,2643.2,0.2419]
[1749051110025,1.5524,2643.8,2643.2,0.2419]
[1749051110225,1.5524,2643.8,2643.3,10.029]
[1749051111621,0.81063691,2643.9,2643.3,16.644]
[1749051111842,0.02,2643.9,2643.3,16.644]
[1749051112935,0.02,2643.9,2643.4,8.16]
[1749051112936,16.0,2643.7,2643.4,8.16]
[1749051113150,6.42768806,2643.5,2643.4,8.16]
[1749051113495,6.42768806,2643.5,2643.4,10.03]
[1749051114059,16.0,2643.7,2643.4,10.03]
[1749051114192,0.02,2643.9,2643.4,10.03]
[1749051114193,2.40818881,2643.6,2643.4,10.03]
[1749051114395,0.02,2643.9,2643.4,16.64]
[1749051116808,0.02,2643.9,2643.5,6.601]
[1749051118650,0.02,2643.9,2643.6,1.87]
[1749051119220,0.02,2643.9,2643.4,8.16]
[1749051119396,6.42768806,2643.7,2643.5,1.87]
[1749051119592,0.64276881,2643.6,2643.5,1.87]
[1749051120498,6.94606881,2643.6,2643.4,8.16]
[1749051120698,16.55,2643.5,2643.4,8.16]
[1749051120994,21.58209878,2643.5,2643.4,10.03]
[1749051121504,21.22,2643.5,2643.4,10.03]
[1749051121825,21.22,2643.5,2643.4,8.16]
[1749051121826,8.87247569,2643.5,2643.4,8.16]
[1749051122030,5.22,2643.5,2643.4,10.03]
[1749051122228,16.55,2643.8,2643.4,10.03]
[1749051122432,22.97768806,2643.8,2643.4,10.03]
[1749051124405,1.5902,2643.9,2643.4,10.03]
[1749051124611,0.02,2643.9,2643.4,10.03]
[1749051124804,0.72763691,2643.9,2643.4,10.03]
[1749051125037,0.02,2643.9,2643.4,10.03]
[1749051127071,0.02,2643.9,2643.5,8.47]
[1749051127236,0.02,2643.9,2643.4,8.16]
[1749051127440,0.02,2643.9,2643.5,1.87]
[1749051127969,0.02,2643.9,2643.6,1.87]
[1749051128166,2.50340572,2643.9,2643.6,1.87]
[1749051128969,0.02,2643.9,2643.6,1.87]
[1749051129361,4.69,2643.9,2643.6,1.87]
[1749051131788,0.02,2643.9,2643.7,6.42768806]
[1749051131939,2.38636912,2644.0,2643.9,10.0]
[1749051132139,1.65628567,2644.0,2643.9,22.3418622]